Cogmind - Beta 15 @@@ ROGUE MODE // 2025.06.24 @ 21:07:19 Player: Ladmageddon Result: Destroyed by as-39074 with Assembled Blade Performance ------------- Evolutions (1) 500 Regions Visited (5) 1000 Robots Destroyed (11) 55 Value Destroyed (182) 182 Prototype IDs (0) 0 Alien Tech Used (0) 0 Bonus (0) 0 TOTAL SCORE: 1737 Bonus ------- None Cogmind --------- Core Integrity 0/400 Matter 269/300 Energy 84/100 System Corruption 12% Temperature Cool (0) Movement Core (150) Ox2 Location -9/Exiles Parts ------- > --- POWER (1) -------- (None) > --- PROPULSION (2) --- (None) > --- UTILITY (4) ------ Cooling System Small Storage Unit > --- WEAPON (2) ------- Light Assault Rifle > --- INVENTORY (8) ---- Reinforced Ion Engine Light Treads Light Assault Rifle Rocket Launcher Mining Laser Hammer Peak State ------------ > --- POWER ------------ Light Ion Engine > --- PROPULSION ------- Wheel Compact Wheel > --- UTILITY ---------- Cooling System Small Storage Unit Structural Scanner Improved Terrain Scanner > --- WEAPON ----------- EM Pulse Gun Assault Rifle > --- INVENTORY -------- Ion Engine Light Treads Light Treads Light Assault Rifle Light Cannon Mining Laser [Rating: 12] Favorites ----------- Power Ion Engine Engine Ion Engine Propulsion Wheel Treads Light Treads Wheel Wheel Utility Small Storage Unit Device Cooling System Storage Small Storage Unit Processor Targeting Computer Protection Light Armor Plating Weapon Light Cannon Energy Gun EM Pulse Gun Ballistic Gun Light Assault Rifle Ballistic Cannon Light Cannon Special Weapon Mining Laser Build | -11 -10 -10 -9 -9 -9 ------- Run | Yrd Mat Min Mat Min Exi Slots Evolved 2 | . . . 2 . . Power . | . . . . . . Propulsion . | . . . . . . Utility 2 | . . . 2 . . Weapon . | . . . . . . Parts Attached 19 | 7 . . 6 5 1 Power 2 | 1 . . 1 . . Engine 2 | 1 . . 1 . . Core . | . . . . . . Reactor . | . . . . . . Propulsion 4 | 2 . . . 2 . Treads 2 | . . . . 2 . Leg . | . . . . . . Wheel 2 | 2 . . . . . Hover . | . . . . . . Flight . | . . . . . . Utility 7 | 2 . . 2 2 1 Device 4 | 1 . . 2 1 . Storage 1 | 1 . . . . . Processor 1 | . . . . 1 . Hackware . | . . . . . . Protection 1 | . . . . . 1 Artifact . | . . . . . . Weapon 6 | 2 . . 3 1 . Energy Gun 1 | 1 . . . . . Energy Cannon . | . . . . . . Ballistic Gun 3 | 1 . . 1 1 . Ballistic Cannon 1 | . . . 1 . . Launcher . | . . . . . . Special Weapon 1 | . . . 1 . . Impact Weapon . | . . . . . . Slashing Weapon . | . . . . . . Piercing Weapon . | . . . . . . Special Melee Weapon . | . . . . . . Unidentified Prototypes . | . . . . . . Parts Lost 13 | . . . 4 2 7 Power 1 | . . . . . 1 Propulsion 4 | . . . . 2 2 Utility 5 | . . . 2 . 3 Weapon 3 | . . . 2 . 1 Highest Loss Streak 7 | . . . 4 2 7 To Critical Strikes 1 | . . . 1 . . Average Backups 6 | 4 5 6 6 7 7 Power . | . 1 1 1 1 1 Propulsion 1 | 2 2 2 2 2 1 Utility . | . . . . 1 1 Weapon 3 | 1 2 3 2 3 4 Tool/Special . | . . . . . . Unused Backups 4 | . . . . . 4 Power 1 | . . . . . 1 Propulsion 1 | . . . . . 1 Utility . | . . . . . . Weapon 2 | . . . . . 2 Tool/Special . | . . . . . . Average Slot Usage (%) 92 | . 100 100 84 94 97 Engine 11 | . 14 14 10 11 10 Treads 7 | . . . . 10 21 Wheel 15 | . 28 28 22 11 . Device 18 | . 14 14 18 18 21 Storage 11 | . 14 14 11 11 11 Processor 5 | . . . . 9 11 Energy Gun 3 | . 14 14 7 . . Ballistic Gun 10 | . 14 14 8 10 11 Ballistic Cannon 7 | . . . 3 11 11 Peak Build Rating 12 | 9 9 9 12 12 12 Average Rating 9 | 4 9 9 9 10 11 On Entrance 7 | . 9 9 9 8 12 Naked Turns . | . . . . . . Heaviest Build 17 | 13 13 13 16 17 17 Greatest Support 40 | 26 26 26 26 40 40 Greatest Overweight (x) 2 | 2 . . . . . Average Overweight (x) . | . . . . . . Largest Inventory Capacity 8 | 8 8 8 8 8 8 Average Capacity 7 | 7 8 8 8 8 8 Most Carried 8 | 8 6 6 8 8 7 Average Carried 6 | 4 5 6 6 7 6 Final Capacity 8 | 8 8 8 8 8 8 Final Carried 8 | 5 6 6 8 7 6 Class Distribution -------------------- 100% | Mutant Dominant Class ---------------- Mutant | -10/Materials Mutant | -10/Mines Mutant | -9/Materials Mutant | -9/Mines Mutant | -9/Exiles Resources | -11 -10 -10 -9 -9 -9 ----------- Run | Yrd Mat Min Mat Min Exi Matter Collected 500 | 285 9 . 86 120 . Remotely . | . . . . . . Salvage Created 372 | 76 . . 238 43 15 Parts 29 | 9 . . 17 3 . Haulers Intercepted . | . . . . . . Recyclers Shooed 1 | 1 . . . . . Parts Field Recycled . | . . . . . . Retrieved Matter . | . . . . . . Parts Self-Destructed . | . . . . . . Prevented . | . . . . . . Kills | -11 -10 -10 -9 -9 -9 ------- Run | Yrd Mat Min Mat Min Exi Combat Hostiles Destroyed 12 | . . . 7 4 1 Guns 6 | . . . 6 . . Cannons 6 | . . . 1 4 1 Classes Destroyed 7 | 2 . . 4 1 . Tunneler 3 | 2 . . . 1 . Recycler 1 | 1 . . . . . Swarmer 4 | . . . 4 . . Grunt 1 | . . . 1 . . Brawler 1 | . . . 1 . . Sentry 1 | . . . 1 . . Assembled 5 | . . . . 4 1 Best Kill Streak 4 | 3 . . 4 4 1 Combat Bots Only 4 | . . . 4 4 1 Max Kills in Single Turn 2 | 1 . . 2 1 1 Gunslinging 1 | . . . 1 . . Exploded . | . . . . . . Melee . | . . . . . . Uniques/NPCs Destroyed . | . . . . . . Combat | -11 -10 -10 -9 -9 -9 -------- Run | Yrd Mat Min Mat Min Exi Hostile Shots Fired 136 | . . 6 32 21 77 Missed 37 | . . 2 6 5 24 Hits 99 | . . 4 26 16 53 Melee 10 | . . . 4 1 5 Projectile 89 | . . 4 22 15 48 Critical Strikes 7 | . . . 1 . 6 Part Disruptions 2 | . . . . 1 1 Damage Taken 1466 | 20 . 29 330 201 886 Core 415 | . . . 61 38 316 Absorbed by Shields . | . . . . . . Core Remaining (%) 100 | 100 . 100 . . . Volleys Fired 43 | 8 . . 21 7 7 Largest 2 | 2 . . 2 2 2 Hottest 100 | 60 . . 100 50 50 Shots Fired 83 | 16 . . 39 16 12 Gun 66 | 16 . . 36 7 7 Cannon 15 | . . . 1 9 5 Launcher . | . . . . . . Special 2 | . . . 2 . . Kinetic 55 | 8 . . 19 16 12 Thermal 2 | . . . 2 . . Explosive . | . . . . . . Electromagnetic 26 | 8 . . 18 . . Robot Hit Streak 17 | 4 . . 17 3 7 Robot Miss Streak 2 | 2 . . 1 2 2 Penetration Max . | . . . . . . Secondary Targets 2 | . . . 2 . . Max Gunslinging Chain 1 | . . . 1 . . Shots Hit Robots 59 | 10 . . 32 9 8 Core Hits 22 | 3 . . 10 7 2 Critical Kills . | . . . . . . Critical Parts Destroyed . | . . . . . . Critical Strikes . | . . . . . . Melee Attacks . | . . . . . . Impact . | . . . . . . Slashing . | . . . . . . Piercing . | . . . . . . Sneak Attacks . | . . . . . . Combat Hostiles . | . . . . . . Follow-up Attacks . | . . . . . . Damage Inflicted 846 | 181 . 3 399 158 105 Guns 551 | 118 . . 371 27 35 Cannons 219 | . . . 18 131 70 Explosions 63 | 63 . . . . . Melee . | . . . . . . Ramming 13 | . . 3 10 . . Kinetic 538 | 54 . . 221 158 105 Thermal 63 | 63 . . . . . Explosive . | . . . . . . Electromagnetic 232 | 64 . . 168 . . Impact . | . . . . . . Slashing . | . . . . . . Piercing . | . . . . . . Highest Corruption 12 | . . . 12 12 12 Average Corruption 11 | . . . 11 12 12 Corruption Purged . | . . . . . . Corruption Blocked . | . . . . . . Effects 28 | . . . 3 18 7 Message Errors 7 | . . . . 6 1 Matter Fused 7 | . . . 1 4 2 Heat Flow Errors 1 | . . . . 1 . Energy Discharges 1 | . . . . 1 . Parts Rejected 1 | . . . 1 . . Parts Fused 1 | . . . . 1 . Data Loss (minor) 3 | . . . . 2 1 Data Loss (major) 2 | . . . 1 1 . Misfires 3 | . . . . 2 1 Misdirections 1 | . . . . . 1 Weapon Failures 1 | . . . . . 1 Overload Shots . | . . . . . . Overflow Damage 24 | 24 . . . . . Projectiles . | . . . . . . Explosions 24 | 24 . . . . . Melee . | . . . . . . Knockbacks 5 | . . . . 2 3 Impact . | . . . . . . Kinetic 5 | . . . . 2 3 Secondary . | . . . . . . Self-Inflicted Damage 27 | 21 . 1 5 . . Shots 1 | 1 . . . . . Rammed 2 | . . 1 1 . . Targets Rammed 2 | . . 1 1 . . Kicked . | . . . . . . Crushed . | . . . . . . Highest Temperature 192 | 12 . . . 192 . Average Temperature 43 | 12 . . . 89 . Received Heat Transfer 248 | . . . 48 180 20 Siege Activations . | . . . . . . Martial Activations . | . . . . . . Shielding Activations . | . . . . . . Robots Disrupted . | . . . . . . Combat Hostiles . | . . . . . . Robots Corrupted . | . . . . . . Combat Hostiles . | . . . . . . Parts Fried . | . . . . . . Impact Corruptions . | . . . . . . Robots Melted . | . . . . . . Combat Hostiles . | . . . . . . Parts Melted . | . . . . . . Heat Transferred 100 | 100 . . . . . Parts Sabotaged . | . . . . . . Parts Stolen . | . . . . . . Parts Stripped . | . . . . . . Power Chain Reactions 2 | 2 . . . . . Alert | -11 -10 -10 -9 -9 -9 ------- Run | Yrd Mat Min Mat Min Exi Maximum Alert Level . | . . . . . . Low Security (%) 100 | 100 100 100 100 100 . Level 1 . | . . . . . . Level 2 . | . . . . . . Level 3 . | . . . . . . Level 4 . | . . . . . . Level 5 . | . . . . . . High Security . | . . . . . . Max Security . | . . . . . . Peak Influence 125 | 10 . . 125 16 . Initial 16 | . . . . 16 . Average 20 | . . . 64 1 . Influence Increases 222 | 15 . . 202 5 . Destroy 0b10 Robot/C 140 | . . . 140 . . Destroy 0b10 Robot/NC 20 | 15 . . . 5 . Destroy Leader 30 | . . . 30 . . Destroy Structure 2 | . . . 2 . . Lose Combat Pursuer 30 | . . . 30 . . Influence Decreases 222 | 15 . . 160 47 . Entered New Map 26 | . . . . 26 . Time Decay 156 | 15 . . 120 21 . Lost Part 40 | . . . 40 . . Squads Dispatched . | . . . . . . Investigation . | . . . . . . Extermination . | . . . . . . Reinforcement . | . . . . . . Assault . | . . . . . . Garrison . | . . . . . . Intercept . | . . . . . . Searches Triggered . | . . . . . . Construction Impeded . | . . . . . . Haulers Reinforced . | . . . . . . Active Scanning Responses . | . . . . . . Cargo Convoy Interrupts . | . . . . . . Stealth | -11 -10 -10 -9 -9 -9 --------- Run | Yrd Mat Min Mat Min Exi Distress Signals . | . . . . . . Communications Jammed . | . . . . . . Distress Signals . | . . . . . . Times Spotted 33 | . 3 3 11 8 8 Peak Tracking Total 9 | . 2 3 5 5 9 Tactical Retreats 2 | . . . 2 . . Traps | -11 -10 -10 -9 -9 -9 ------- Run | Yrd Mat Min Mat Min Exi Traps Triggered . | . . . . . . Indirectly . | . . . . . . Trap Hack Attempts . | . . . . . . Triggered . | . . . . . . Disarmed . | . . . . . . Reprogrammed . | . . . . . . Reused . | . . . . . . Traps Extracted . | . . . . . . Installed . | . . . . . . Triggered . | . . . . . . Machines | -11 -10 -10 -9 -9 -9 ---------- Run | Yrd Mat Min Mat Min Exi Machines Disabled 1 | . . . . . 1 Max in Single Turn . | . . . . . . Machines Repaired . | . . . . . . Machines Dismantled . | . . . . . . Machines Sabotaged . | . . . . . . Overloaded Fab Kills . | . . . . . . Hacking | -11 -10 -10 -9 -9 -9 --------- Run | Yrd Mat Min Mat Min Exi Machines Accessed . | . . . . . . Terminals . | . . . . . . Fabricators . | . . . . . . Repair Stations . | . . . . . . Recycling Units . | . . . . . . Scanalyzers . | . . . . . . Garrison Access . | . . . . . . Total Hacks . | . . . . . . Successful . | . . . . . . Failed . | . . . . . . Catastrophic . | . . . . . . Database Lockouts . | . . . . . . Manual . | . . . . . . Terminals . | . . . . . . Fabricators . | . . . . . . Repair Stations . | . . . . . . Recycling Units . | . . . . . . Scanalyzers . | . . . . . . Garrison Access . | . . . . . . Terminal Hacks . | . . . . . . Fabricator Hacks . | . . . . . . Repair Station Hacks . | . . . . . . Recycling Unit Hacks . | . . . . . . Scanalyzer . | . . . . . . Garrison Access Hacks . | . . . . . . Unauthorized Hacks . | . . . . . . Terminals . | . . . . . . Fabricators . | . . . . . . Repair Stations . | . . . . . . Recycling Units . | . . . . . . Scanalyzers . | . . . . . . Garrison Access . | . . . . . . Data Cores Recovered . | . . . . . . Used . | . . . . . . Hacking Detections . | . . . . . . Full Trace Events . | . . . . . . Feedback Events . | . . . . . . Feedback Blocked . | . . . . . . Robot Schematics Acquired . | . . . . . . Robots Built . | . . . . . . Authchips . | . . . . . . Time . | . . . . . . Total Robot Build Rating . | . . . . . . Part Schematics Acquired . | . . . . . . Parts Built . | . . . . . . Authchips . | . . . . . . Time . | . . . . . . Total Part Build Rating . | . . . . . . Parts Repaired . | . . . . . . Time . | . . . . . . Parts Recycled . | . . . . . . Recycled Matter . | . . . . . . Retrieved Matter . | . . . . . . Retrieved Components . | . . . . . . Parts Scanalyzed . | . . . . . . Part Schematics Acquired . | . . . . . . Parts Damaged . | . . . . . . Bothacking | -11 -10 -10 -9 -9 -9 ------------ Run | Yrd Mat Min Mat Min Exi Used RIF Installer . | . . . . . . Robots Hacked . | . . . . . . Non-combat . | . . . . . . Combat . | . . . . . . Robot Hacks Applied . | . . . . . . Relay Couplers Released . | . . . . . . Fabnet Peak Effective % . | . . . . . . Robots Rewired . | . . . . . . Allies Hacked . | . . . . . . Hacks Repelled . | . . . . . . Allies | -11 -10 -10 -9 -9 -9 -------- Run | Yrd Mat Min Mat Min Exi Total Allies 3 | . . . . 3 . Largest Group 3 | . . . . 3 3 Highest-Rated Group 40 | . . . . 40 40 Highest-Rated Ally 16 | . . . . 16 16 Total Orders . | . . . . . . Ally Attacks 34 | . . . . 20 14 Total Damage 298 | . . . . 175 123 Kills 6 | . . . . 5 1 Allies Corrupted 1 | . . . . . 1 Allies Melted . | . . . . . . Intel | -11 -10 -10 -9 -9 -9 ------- Run | Yrd Mat Min Mat Min Exi Active Infowar (turns) 753 | 9 71 40 195 329 109 Terrain 744 | 9 71 40 186 329 109 Structural 39 | . . . 39 . . Robot Analysis Total . | . . . . . . Derelict Logs Recovered 2 | . . . . 2 . Drone Launches . | . . . . . . Drone Recoveries . | . . . . . . Exploration | -11 -10 -10 -9 -9 -9 ------------- Run | Yrd Mat Min Mat Min Exi Turns Passed 1085 | 99 71 40 293 465 117 Spaces Moved 834 | 62 78 44 218 370 62 Core 22 | 22 . . . . . Treads 197 | . . . . 135 62 Legs . | . . . . . . Wheels 615 | 40 78 44 218 235 . Hover . | . . . . . . Flight . | . . . . . . Fastest Speed 50 | 50 90 90 90 90 160 Average Speed 106 | 91 90 90 90 115 160 Slowest Speed 160 | 150 90 90 90 160 160 Overloaded Moves . | . . . . . . Propulsion Burnouts . | . . . . . . Robots Hopped . | . . . . . . Potential Cave-ins . | . . . . . . Cave-ins Triggered . | . . . . . . Exploration Rate (%) 25 | 3 18 16 19 74 25 Regions Visited 5 Branch Regions 3 Pre-discovered Areas . | . . . . . . Known Exits Taken . | . . . . . . Unknown Exits Taken 5 | 1 1 1 1 1 . Scrap Searched 1 | . . . . 1 . Spaces Dug 2 | . . . 2 . . Terrain Destroyed 8 | 6 . . 2 . . Melee . | . . . . . . Projectile 2 | . . . 2 . . AOE 6 | 6 . . . . . Terrain Rammed . | . . . . . . Walls Destroyed . | . . . . . . Machines Disabled . | . . . . . . Actions | -11 -10 -10 -9 -9 -9 --------- Run | Yrd Mat Min Mat Min Exi Total 944 | 86 78 44 271 395 70 Wait 30 | . . . 19 11 . Move 829 | 61 77 43 217 369 62 Hop . | . . . . . . Pick Up 20 | 10 1 . 7 2 . Fast Attach 4 | 2 . . . 2 . Attach 14 | 5 . . 5 3 1 Detach . | . . . . . . Swap 1 | . . . 1 . . Drop 1 | . . . . 1 . Fire 43 | 8 . . 21 7 7 Melee . | . . . . . . Ram 2 | . . 1 1 . . Kick . | . . . . . . Crush . | . . . . . . Escape Stasis . | . . . . . . Rewire . | . . . . . . Trap . | . . . . . . Miscellaneous . | . . . . . . Route ------- -11/Scrapyard -10/Materials -10/Mines -9/Materials -9/Mines (discovered 3 exits: [*Mat x2] / [*Exi]) -9/Exiles History --------- Turn | Location | Event 6 | -11/Scrapyard | Discovered new exit (range 15) 100 | -11/Scrapyard | Entered Materials 101 | -10/Materials | Met a group of wandering Federalists 147 | -10/Materials | Discovered new exit (range 16) 171 | -10/Materials | Entered Mines 207 | -10/Mines | Discovered new exit (range 5) 211 | -10/Mines | Entered Materials 211 | -9/Materials | Evolved 2 slots: Utility x2 302 | -9/Materials | Build established: Mutant 404 | -9/Materials | System corruption reached 10% 437 | -9/Materials | Lost 4 parts (2u2w) 497 | -9/Materials | Discovered new exit (range 9) 504 | -9/Materials | Entered Mines 511 | -9/Mines | Assisted by bots powering up and referring to "LRC-V3" 514 | -9/Mines | Learned 2 Materials zone layouts 605 | -9/Mines | Assembled infested the area 724 | -9/Mines | Received a Rocket Launcher from a helpful Derelict 727 | -9/Mines | Discovered new exit (range 12) 840 | -9/Mines | Learned Materials trap positions 931 | -9/Mines | Discovered new exit (range 13) 963 | -9/Mines | Deemed a non-threat by the Exiles lab entrance 963 | -9/Mines | Discovered new exit (range 5) 969 | -9/Mines | Entered Exiles 969 | -9/Exiles | Accompanied by 3 allies 1013 | -9/Exiles | Met 8R-AWN 1037 | -9/Exiles | Met EX-HEX 1051 | -9/Exiles | Attacked by the Exiles 1069 | -9/Exiles | Core integrity fell below 50% 1081 | -9/Exiles | Core integrity fell below 20% 1086 | -9/Exiles | Destroyed by as-39074 with Assembled Blade Last Messages --------------- Lgt. Treads destroyed. HV Slug penetrates Machine. Ion Engine destroyed. as-39074 knocked back. Penetrated by HV Slug. Imp. Terrain Scanner destroyed. Penetrated by HV Slug. HV Slug penetrates Machine. Machine disabled. HV Slug penetrates Machine. System corrupted: Lgt. Assault Rifle jammed. as-39074 knocked back. Targeting Computer destroyed. HV Slug penetrates Machine. Penetrated by HV Slug. Lgt. Cannon destroyed. Lgt. Armor Plating destroyed. Penetrated by HV Slug. Destroyed Asb. Hover Unit. Lgt. Treads destroyed. Map ----- +----------------------------------------------------+ | ?????????????????????????????????????????????????? | | ?????????????????????????????????????????????????? | | ?????????????????????????????????????????????????? | | ?????????????????????????????????????????????????? | | ?????????????????????????????????????????????????? | | ?????????????????????????????????????????????????? | | ?????????????????????????????????????????????????? | | ?????????????????????????????????????????????????? | | ?????????????????????????????????????????????????? | | ?????????????????????????????????????????????????? | | ?????????????????????????????????????????????????? | | ?????????????????????????????????????????????????? | | ?????????????????????????????????????????????????? | | ?????????????????????????????????????????????????? | | ?????????????????????????????????????????????????? | | ?????????????? ??????????????????????????????????? | | ?????????????" ?????????????????????????????????? | | ????????????? ????????????????????????????????? | | ????????????" ???????????????????????????????? | | ????????????" ?????###########???##???#?????? | | ???????????? #####"""""""""##?????????????? | | ??????????? """ """##????????????? | | ??????????? " " #???????????#? | | ?????????? """#????????????? | | ?????????? "a"#???????????## | | ?????????? @ % "##???#?????##" | | ?????????? a% ""###???????#" | | ????????????"""" % """#??????##" | | ??????????????#""" "#????### | | ??????????????#####" ##???# | | ??????????????????##""" ##?## | | ???????????????#???#"""" %[ ### | | ???????????????????#"" * [ # | | ????????????????????""" % %= ## | | ??????????????????? % ! ""#? | | ?????????????????? #"""##? | | ?????????????????? ######?? | | ????????????????? ###????#? | | ?????????????????? " ##???????? | | ??????????????????"" """ ""#????#???? | | ???????????????????"" " " ""#" "##????????? | | ????????????????????##""" """##"""" "##???#?????? | | ????????????????????????""???##########???#?????#? | | ?????????????????????????????????????????????????? | | ?????????????????????????????????##??????????????? | | ?????????????????????????????????????#???????????? | | ?????????????????????????????????????????????????? | | ?????????????????????????????????????????????????? | | ?????????????????????????????????????????????????? | | ?????????????????????????????????????????????????? | +----------------------------------------------------+ Best States ------------- Heat Dissipation 50 Energy Generation 10 Energy Capacity 250 Matter Stores 300 Matter Capacity 300 Sight Range 16 Terrain Scan Range 16 Terrain Scan Density 10 Evasion (%) 50 Targeting Accuracy 5 Recoil Reduction 2 Item Schematics ----------------- None Robot Schematics ------------------ None Fabricated ------------ Nothing Repaired ---------- Nothing Alien Tech Used ----------------- None Achievements -------------- None Challenges ------------ None Game ------ Seed AerolevDirectedRailcannon Manual? 0 Play Time 00:15:01 Cumulative 18.2 hours Start 2025.06.24 @ 20:53:06 End 2025.06.24 @ 21:07:19 Sessions 1 Manual Loads 0 Difficulty Rogue Special Mode None Game No. 43 Rogue 40 Adventurer 3 Explorer 0 Win Type - Total 0 Types 0/0/0/0/0/0/0/0/0/0 Lore% 12 Gallery% 24 Achievement% 22 Wizard Run 0 Options --------- Layout 1 ASCII 0 Keyboard 0 Movement Mouse Keybinds 0 Fullscreen 1 Font 16/SmallcapsGlow Map View 25x20 Zoom Use 99% Tactical HUD 0 Map Filters NONE Filters NONE Steam SD RUN: 81e79154-15e8-46e7-8a10-177a3f159542